bitfinex-derivatives/quotes_ETHF0:USTF0_20251211
["timestamp","ask_amount","ask_price","bid_price","bid_amount"]
[1765442598340,0.00713531,3186.7,3186.6,2.2201]
[1765442598543,0.00713531,3186.7,3186.6,4.5183]
[1765442598945,0.00713531,3186.7,3186.6,2.2982]
[1765442599241,0.00713531,3186.7,3186.5,1.3966]
[1765442600944,0.00713531,3186.7,3186.5,3.6948]
[1765442601748,0.00713531,3186.7,3186.5,1.3966]
[1765442602646,0.00713531,3186.7,3186.5,3.6948]
[1765442603846,0.00713531,3186.7,3186.5,1.3966]
[1765442605546,0.00713531,3186.7,3186.0,3.6977]
[1765442605745,3.2078,3186.1,3186.0,3.6977]
[1765442605945,3.2078,3186.1,3186.0,5.9178]
[1765442607054,3.2078,3186.1,3186.0,1.3995]
[1765442608149,3.2078,3186.1,3185.6,0.00470802]
[1765442608354,3.2078,3185.7,3185.6,0.00470802]
[1765442610358,3.2078,3185.7,3185.0,1.52589836]
[1765442610559,3.2078,3185.2,3185.0,1.52589836]
[1765442611850,3.2078,3185.2,3185.0,5.75109836]
[1765442612055,3.2078,3185.2,3185.1,4.2252]
[1765442622066,3.2078,3185.6,3185.5,5.5241]
[1765442622960,3.2078,3185.6,3185.5,3.4197]
[1765442623357,3.2078,3185.6,3185.5,1.2989]
[1765442626665,4.36396217,3185.6,3185.5,1.2989]
[1765442626965,4.36396217,3185.6,3185.5,3.4197]
[1765442627962,4.36396217,3185.6,3185.5,1.2989]
[1765442632859,4.36396217,3185.6,3185.5,5.5241]
[1765442633267,8.05596217,3185.6,3185.5,5.5241]
[1765442637371,6.8998,3185.6,3185.5,5.5241]
[1765442637966,1.00909823,3185.9,3185.8,4.2252]
[1765442638669,3.13089823,3185.9,3185.8,4.2252]
[1765442640466,1.00909823,3185.9,3185.8,4.2252]
[1765442640662,2.0778,3185.9,3185.8,4.2252]
[1765442641476,6.41255994,3186.0,3185.9,4.101]
[1765442643471,3.2078,3186.0,3185.9,4.101]
[1765442645074,3.2078,3186.4,3186.3,4.101]
[1765442646075,5.2856,3186.4,3186.3,4.101]
[1765442647080,7.2235,3186.4,3186.3,4.101]
[1765442647581,5.2856,3186.4,3186.3,4.101]
[1765442647776,2.0778,3186.1,3186.0,5.2755]
[1765442647983,4.33475994,3186.4,3186.0,5.2755]
[1765442648282,8.35045994,3186.4,3186.3,4.101]
[1765442649784,6.41255994,3186.4,3186.3,4.101]
[1765442650084,3.2078,3186.4,3186.3,4.101]
[1765442651190,5.2856,3186.4,3186.3,4.101]
[1765442651677,3.2078,3186.4,3186.3,4.101]
[1765442656191,2.9078,3186.4,3186.3,4.101]
[1765442656684,5.0231,3186.4,3186.3,4.101]
[1765442658178,5.0231,3186.4,3186.3,2.0366]
[1765442658179,6.994,3186.4,3186.3,2.0366]
[1765442658781,6.994,3186.4,3186.3,4.165]
[1765442661491,4.0862,3186.3,3186.2,2.17699]
[1765442662392,4.0862,3186.3,3186.2,0.15689]
[1765442663193,4.0862,3186.3,3186.2,4.30539]
[1765442663893,4.0862,3186.3,3186.2,2.17699]
[1765442664090,4.0862,3186.1,3186.0,5.323]
[1765442664895,2.1153,3186.1,3186.0,5.323]
[1765442665901,4.0862,3186.1,3186.0,5.323]
[1765442666899,4.0862,3186.1,3186.0,3.1946]
[1765442667501,4.0862,3186.1,3186.0,1.1745]
[1765442668091,4.03803531,3186.7,3186.6,4.1485]
[1765442668297,4.0103,3186.6,3186.5,1.2654]
[1765442668702,4.0103,3186.6,3186.5,3.2215]
[1765442668902,1.95573531,3186.7,3186.6,3.9378]
[1765442669094,0.00713531,3186.7,3186.6,3.9378]
[1765442669497,1.95573531,3186.7,3186.6,3.9378]
[1765442671803,0.00713531,3186.7,3186.6,3.9378]
[1765442672797,1.95573531,3186.7,3186.6,3.9378]
[1765442674002,0.00713531,3186.7,3186.6,3.9378]
[1765442674804,1.94703531,3186.7,3186.6,3.9378]
[1765442675696,0.00713531,3186.7,3186.6,3.9378]
[1765442675899,1.90673531,3186.7,3186.6,3.9378]
[1765442676494,3.80633531,3186.7,3186.6,3.9378]
[1765442677503,1.90673531,3186.7,3186.6,3.9378]
[1765442679104,3.76623531,3186.7,3186.6,3.9378]
[1765442679505,1.90673531,3186.7,3186.6,3.9378]
[1765442681607,3.72643531,3186.7,3186.6,3.9378]
[1765442683111,1.90673531,3186.7,3186.6,3.9378]
[1765442686011,0.00713531,3186.7,3186.6,3.9378]
[1765442686315,1.70903531,3186.7,3186.6,3.9378]
[1765442687411,1.70903531,3186.7,3186.5,3.2215]
[1765442687412,3.3262,3186.6,3186.5,3.2215]
[1765442688510,3.3262,3186.6,3186.5,5.2032]
[1765442689308,3.3262,3186.6,3186.5,1.2654]
[1765442690211,3.2492,3186.2,3186.1,7.88103506]
[1765442690615,3.2492,3186.2,3186.1,3.9378]
[1765442690818,4.33775994,3186.4,3186.3,3.9378]
[1765442691011,1.6054,3186.4,3186.3,3.9378]
[1765442691211,0.00713531,3186.7,3186.6,3.9378]
[1765442691409,1.59343531,3186.7,3186.6,3.9378]
[1765442692219,0.00713531,3186.7,3186.6,3.9378]
[1765442692615,1.57443531,3186.7,3186.6,3.9378]
[1765442692917,4.26869525,3186.7,3186.6,3.9378]
[1765442695422,3.0212,3186.6,3186.5,3.0904]
[1765442695623,3.0212,3186.6,3186.5,5.0721]
[1765442698629,3.0212,3186.6,3186.5,3.0904]
[1765442699326,3.0212,3186.6,3186.5,4.9004]
[1765442700423,6.229,3186.6,3186.5,1.1343]
[1765442700628,2.8282,3186.1,3186.0,1.2654]
[1765442700927,3.95515994,3186.1,3186.0,1.2654]
[1765442701121,1.12695994,3186.1,3186.0,4.8661]
[1765442701428,5.73035994,3186.2,3186.1,3.6007]
[1765442701626,7.12595994,3186.2,3186.1,3.6007]
[1765442702722,5.75909537,3186.2,3186.1,3.6007]
[1765442702929,3.2078,3186.2,3186.1,3.6007]
[1765442703129,5.9439,3186.6,3186.5,2.8967]
[1765442703427,7.09959537,3186.6,3186.5,4.6874]
[1765442705234,5.74069537,3186.6,3186.5,4.6874]
[1765442705432,3.2078,3186.6,3186.5,4.6874]
[1765442707329,4.36349537,3186.6,3186.5,4.6874]
[1765442707733,5.64969537,3186.6,3186.5,4.6874]
[1765442708325,6.93589537,3186.6,3186.5,4.6874]
[1765442708727,6.93589537,3186.6,3186.5,1.0867]
[1765442710329,6.93589537,3186.6,3186.5,4.6874]
[1765442710535,5.64969537,3186.6,3186.5,4.6874]
[1765442710734,3.2078,3186.6,3186.5,4.6874]
[1765442712234,0.00713531,3186.7,3186.6,3.6007]
[1765442714639,1.20383531,3186.7,3186.6,3.6007]
[1765442715336,0.00713531,3186.7,3186.6,3.6007]
[1765442719133,0.00309936,3186.7,3186.6,3.6007]
[1765442719340,3.2078,3187.0,3186.9,3.5001]
[1765442719939,4.2887,3187.0,3186.9,3.5001]
[1765442720335,4.2913701,3187.0,3186.9,3.5001]
[1765442721032,3.2104701,3187.0,3186.9,3.5001]
[1765442722434,4.2752701,3187.0,3186.9,3.5001]
[1765442722742,6.46126547,3187.0,3186.9,3.5001]
[1765442724142,5.3055701,3187.0,3186.9,3.5001]
[1765442724445,5.3055701,3187.0,3186.9,1.7745]
[1765442724637,5.3055701,3187.0,3186.9,3.5001]
[1765442725034,4.2752701,3187.0,3186.9,3.5001]
[1765442728145,3.2104701,3187.0,3186.9,3.5001]
[1765442728744,4.1386701,3187.0,3186.9,3.5001]
[1765442729850,3.2104701,3187.0,3186.9,3.5001]
[1765442730048,0.0026701,3187.0,3186.9,3.5001]
[1765442730249,0.0026701,3187.0,3186.9,4.65579537]
[1765442733251,0.00470802,3187.3,3187.2,3.0616]
[1765442734251,0.00787953,3187.3,3187.2,3.0616]
[1765442736855,0.85207953,3187.3,3187.2,3.0616]
[1765442737447,2.0077749,3187.3,3187.2,3.0616]
[1765442738048,0.85207953,3187.3,3187.2,3.0616]
[1765442741859,1.4276,3187.1,3187.0,4.0633]
[1765442742056,2.58329537,3187.1,3187.0,4.0633]
[1765442742957,2.58329537,3187.1,3187.0,2.5465]
[1765442743157,2.58329537,3187.1,3187.0,1.0017]
[1765442743561,1.3634,3186.7,3186.6,4.75730802]
[1765442743758,5.72689537,3186.7,3186.6,0.00470802]
[1765442744062,1.3634,3186.6,3186.5,1.0867]
[1765442745257,0.6817,3186.6,3186.5,4.1483]
[1765442745458,2.48789537,3186.6,3186.5,4.1483]
[1765442745761,1.3322,3186.6,3186.5,4.1483]
[1765442746066,1.83739537,3186.6,3186.5,4.1483]
[1765442748366,1.15569537,3186.6,3186.5,4.1483]
[1765442748861,1.75869537,3186.6,3186.5,4.1483]
[1765442749076,4.4138,3187.1,3187.0,4.0633]
[1765442749264,4.96649537,3187.1,3187.0,4.0633]
[1765442749659,4.36349537,3187.1,3187.0,4.0633]
[1765442749966,4.95069537,3187.1,3187.0,4.0633]
[1765442750560,3.795,3187.1,3187.0,4.0633]
[1765442750766,4.95069537,3187.1,3187.0,4.0633]
[1765442751265,5.53789537,3187.1,3187.0,2.5465]
[1765442751455,5.53789537,3187.1,3187.0,1.0017]
[1765442751661,5.53789537,3187.1,3187.0,2.5465]
[1765442751857,5.53789537,3187.1,3187.0,1.0017]
[1765442752063,4.95069537,3187.1,3187.0,4.0633]
[1765442752369,4.36349537,3187.1,3187.0,4.0633]
[1765442752557,4.90379537,3187.1,3187.0,4.0633]
[1765442753457,5.44409537,3187.1,3187.0,4.0633]
[1765442756068,5.44409537,3187.1,3187.0,2.5465]
[1765442756264,5.44409537,3187.1,3187.0,1.0017]
[1765442757469,4.2884,3187.1,3187.0,1.0017]
[1765442757672,5.44409537,3187.1,3187.0,1.0017]
[1765442757962,5.44409537,3187.1,3187.0,4.0633]
[1765442758361,1.15569537,3187.1,3187.0,4.0633]
[1765442759364,1.60399537,3187.1,3187.0,4.0633]
[1765442759667,1.15569537,3187.1,3187.0,4.0633]
[1765442760567,0.44097953,3187.3,3187.2,2.9205]
[1765442760768,1.5966749,3187.3,3187.2,2.9205]
[1765442761368,0.00787953,3187.3,3187.2,2.9205]
[1765442761568,3.2078,3187.9,3187.8,2.9205]
[1765442762673,0.00470802,3188.2,3188.1,2.9205]
[1765442763067,0.40478767,3188.2,3188.1,2.9205]
[1765442763671,0.78668767,3188.2,3188.1,2.9205]
[1765442764074,0.40478767,3188.2,3188.1,2.9205]
[1765442764474,0.78668767,3188.2,3188.1,2.9205]
[1765442764871,0.40478767,3188.2,3188.1,2.9205]
[1765442765076,0.77168767,3188.2,3188.1,2.9205]
[1765442765675,0.40478767,3188.2,3188.1,2.9205]
[1765442766678,0.75678767,3188.2,3188.1,1.4832]
[1765442766883,0.6742,3188.1,3188.0,0.8417]
[1765442767083,1.79945496,3188.1,3188.0,0.8417]
[1765442767384,1.79945496,3188.1,3188.0,2.3249]
[1765442769079,1.79945496,3188.1,3188.0,0.8417]
[1765442770289,0.5856,3187.9,3187.8,0.00234916]
[1765442771182,1.71085496,3187.9,3187.8,1.48554916]
[1765442771492,2.21,3187.1,3186.3,3.36469]
[1765442771684,6.54305496,3187.1,3186.3,3.36469]
[1765442772090,1.105,3186.6,3186.5,3.9146]
[1765442772282,1.12525496,3186.7,3186.5,3.9178919]
[1765442772481,2.23025496,3186.7,3186.6,2.8279]
[1765442772988,1.12525496,3186.7,3186.6,2.8279]
[1765442773378,2.33625496,3187.0,3186.9,2.8279]
[1765442773588,3.54725496,3187.0,3186.9,2.8279]
[1765442774289,3.54725496,3187.0,3186.9,1.447]
[1765442775886,3.54725496,3187.0,3186.5,1.0899919]
[1765442776086,1.1812,3186.6,3186.5,3.9178919]
[1765442776992,2.3624,3186.6,3186.5,3.9178919]
[1765442777792,1.1812,3186.6,3186.5,3.9178919]
[1765442781096,2.3328,3186.6,3186.5,3.9178919]
[1765442781896,1.1812,3186.6,3186.5,3.9178919]
[1765442790798,2.1876,3186.6,3186.5,1.0899919]
[1765442791500,2.1876,3186.6,3186.5,3.7801919]
[1765442793701,2.1876,3186.6,3186.5,1.0899919]
[1765442794304,2.1876,3186.6,3186.5,2.3923919]
[1765442794506,1.1812,3186.6,3186.5,3.7801919]
[1765442794804,3.2078,3186.7,3186.6,2.6902]
[1765442796109,1.12525496,3186.9,3186.8,2.6902]
[1765442796398,6.8998,3187.3,3187.2,2.6902]
[1765442796399,3.2078,3187.3,3187.2,2.6902]
[1765442800310,1.6422,3187.1,3187.0,0.8041]
[1765442800512,2.76745496,3187.1,3187.0,2.1065]
[1765442800709,2.76745496,3187.1,3187.0,3.4943]
[1765442804417,1.94635496,3187.1,3187.0,3.4943]
[1765442805819,2.71315496,3187.1,3187.0,3.4943]
[1765442808618,1.4266,3187.1,3187.0,3.4943]
[1765442808823,2.55185496,3187.1,3187.0,0.8041]
[1765442810221,2.55185496,3187.1,3187.0,2.1065]
[1765442811120,1.83855496,3187.1,3187.0,3.4943]
[1765442811426,2.47245496,3187.1,3187.0,3.4943]
[1765442812024,0.6736,3187.1,3187.0,3.4943]
[1765442812222,1.12525496,3187.1,3187.0,3.4943]
[1765442812420,2.44605496,3187.1,3187.0,0.8041]
[1765442812924,2.44605496,3187.1,3187.0,3.4943]
[1765442813322,1.12525496,3187.1,3187.0,3.4943]
[1765442814122,1.77255496,3187.1,3187.0,3.4943]
[1765442814326,1.12525496,3187.1,3187.0,3.4943]
[1765442814825,3.8421,3187.3,3187.2,2.6902]
[1765442815229,4.4764,3187.3,3187.2,2.6902]
[1765442820831,3.2078,3187.3,3187.2,2.6902]
[1765442821229,1.2746,3187.9,3187.8,2.5076]
[1765442821629,4.4824,3188.0,3187.9,2.5076]
[1765442821932,3.2078,3188.0,3187.9,2.5076]
[1765442822235,2.39985496,3188.1,3188.0,3.2142]
[1765442822529,1.2746,3187.6,3187.5,6.0946]
[1765442822727,3.66265496,3187.8,3187.7,2.5076]
[1765442823032,2.39985496,3187.8,3187.7,2.5076]
[1765442823230,1.12525496,3187.8,3187.7,2.5076]
[1765442823435,1.12525496,3188.1,3188.0,0.7066]
[1765442823623,1.12525496,3188.1,3188.0,3.2142]
[1765442824531,3.2078,3188.4,3188.1,2.5076]
[1765442824730,1.82145496,3188.5,3188.1,5.7154]
[1765442824731,1.15391856,3188.5,3188.1,5.7154]
[1765442825630,1.15391856,3188.3,3188.1,5.7154]
[1765442826525,1.15391856,3188.5,3188.1,5.7154]
[1765442830738,1.15391856,3188.3,3188.1,5.7154]
[1765442830938,1.28248767,3188.2,3188.1,5.7154]
[1765442832836,0.00788767,3188.2,3188.1,5.7154]
[1765442834632,1.39148767,3188.2,3188.1,5.7154]
[1765442835234,1.39148767,3188.2,3188.1,2.5076]
[1765442836241,2.54540623,3188.2,3188.1,2.5076]
[1765442836539,1.16180623,3188.2,3188.1,2.5076]
[1765442836833,1.16180623,3188.2,3188.1,5.7154]
[1765442837241,0.00788767,3188.2,3188.1,5.7154]
[1765442840934,1.39148767,3188.2,3188.1,5.7154]
[1765442842348,2.67148767,3188.2,3188.1,5.7154]
[1765442842949,1.39148767,3188.2,3188.1,5.7154]
[1765442846754,2.67148767,3188.2,3188.1,5.7154]
[1765442847250,2.67148767,3188.2,3187.3,1.4078638]
[1765442847251,2.6636,3187.7,3187.6,4.5619]
[1765442847450,2.6636,3187.3,3187.2,5.8851]
[1765442847753,3.81751856,3187.3,3187.2,4.5619]
[1765442848148,3.81751856,3187.3,3187.2,3.2078]
[1765442848349,0.784,3187.0,3186.8,3.2078]
[1765442848554,1.3103,3186.6,3186.5,3.6143919]
[1765442848748,2.46421856,3186.6,3186.5,3.6143919]
[1765442848950,3.66321856,3186.6,3186.5,3.6143919]
[1765442849356,2.46421856,3186.6,3186.5,3.6143919]
[1765442849552,1.15391856,3186.6,3186.5,3.6143919]
[1765442850450,3.9918,3187.0,3186.7,1.3089]
[1765442850451,1.15391856,3186.8,3186.7,1.3089]
[1765442850655,1.15391856,3186.8,3186.5,1.0899919]
[1765442850656,5.7171,3187.0,3186.9,2.5244]
[1765442850849,7.65501856,3187.0,3186.9,1.3089]
[1765442851049,7.65501856,3187.0,3186.5,1.0899919]
[1765442851251,1.15391856,3186.6,3186.5,3.6143919]
[1765442851457,2.46421856,3186.6,3186.5,3.6143919]
[1765442852365,1.15391856,3186.6,3186.5,3.6143919]
[1765442853366,2.46421856,3186.6,3186.5,3.6143919]
[1765442853961,1.15391856,3186.6,3186.5,3.6143919]
[1765442855469,1.15391856,3186.6,3186.5,1.3121919]
[1765442855470,3.66321856,3186.6,3186.5,1.3121919]
[1765442855670,2.46421856,3186.6,3186.5,3.2982919]
[1765442856270,3.66321856,3186.6,3186.5,3.2982919]
[1765442858061,3.66321856,3186.6,3186.5,0.0032919]
[1765442858771,6.87101856,3186.6,3186.5,0.0032919]
[1765442862667,3.66321856,3186.3,3186.2,0.00470802]
[1765442863175,3.66321856,3186.3,3186.2,2.52910802]
[1765442863568,3.66321856,3186.3,3186.2,2.53165156]
[1765442867880,3.66321856,3186.3,3186.2,0.00725156]
[1765442868781,4.81713712,3186.3,3186.2,0.00725156]
[1765442868983,4.81713712,3186.3,3185.5,4.0184]
[1765442869285,3.66321856,3185.6,3185.5,6.5428]
[1765442869676,2.46421856,3185.6,3185.5,6.5428]
[1765442869871,2.46729069,3185.6,3185.5,6.54685119]
[1765442870278,1.15699069,3185.6,3185.5,6.54685119]
[1765442870975,0.00307213,3185.6,3185.5,6.54685119]
[1765442873285,1.15391856,3186.5,3186.4,2.5244]
[1765442873480,3.66321856,3186.5,3186.4,2.5244]
[1765442874083,3.21250802,3186.6,3186.5,3.295]
[1765442874281,5.68062311,3186.6,3186.5,3.295]
[1765442874481,6.87962311,3186.6,3186.5,3.295]
[1765442874877,5.68062311,3186.6,3186.5,3.295]
[1765442875284,6.87962311,3186.6,3186.5,3.295]
[1765442875982,6.87962311,3186.6,3186.5,2.5244]
[1765442876382,6.87962311,3186.6,3186.5,1.3089]
[1765442877077,6.87962311,3186.6,3186.0,0.7706]
[1765442877078,2.5093,3186.1,3186.0,3.295]
[1765442877274,3.66321856,3186.1,3186.0,3.295]
[1765442877481,3.66321856,3186.1,3186.0,2.5244]
[1765442878175,3.66321856,3186.1,3186.0,3.295]
[1765442879781,2.46421856,3186.1,3186.0,3.295]
[1765442879976,1.15391856,3186.3,3186.0,0.7706]
[1765442880182,1.15391856,3186.3,3186.2,2.5997]
[1765442880584,2.43021856,3186.5,3186.0,0.7706]
[1765442880771,2.43021856,3186.5,3186.4,2.5997]
[1765442880973,1.15391856,3186.5,3186.4,2.5997]
[1765442882083,2.43021856,3186.5,3186.4,2.5997]
[1765442883387,3.68581856,3186.5,3186.4,2.5997]
[1765442884087,2.43021856,3186.5,3186.4,2.5997]
[1765442884279,1.15391856,3186.5,3186.4,2.5997]
[1765442884486,3.21640455,3186.6,3186.5,3.3767]
[1765442885686,4.49270455,3186.6,3186.5,3.3767]
[1765442886188,3.21640455,3186.6,3186.5,3.3767]
[1765442886786,4.49270455,3186.6,3186.5,3.3767]
[1765442886987,6.87435548,3186.6,3186.5,1.3448]
[1765442887188,6.87435548,3186.6,3186.5,2.5997]
[1765442888292,6.87435548,3186.6,3186.5,1.3448]
[1765442888886,5.74830455,3186.6,3186.5,1.3448]
[1765442889390,5.74830455,3186.6,3186.5,2.5997]
[1765442896690,3.21640455,3186.6,3186.5,3.3206]
[1765442896890,4.45000455,3186.6,3186.5,3.3206]
[1765442897495,5.67070455,3186.6,3186.5,3.3206]
[1765442897897,0.00860455,3186.6,3186.5,3.47748]
[1765442907400,1.24220455,3186.6,3186.5,3.47748]
[1765442907901,2.46290455,3186.6,3186.5,3.47748]
[1765442908200,1.24220455,3186.6,3186.5,3.47748]
[1765442909097,0.00860455,3186.6,3186.5,3.47748]
[1765442913905,1.23350455,3186.6,3186.5,3.47748]
[1765442914106,2.41390455,3186.6,3186.5,3.47748]
[1765442914607,1.23350455,3186.6,3186.5,3.47748]
[1765442915006,2.41390455,3186.6,3186.5,3.47748]
[1765442915305,2.41390455,3186.6,3186.5,2.75658]
[1765442916303,2.41390455,3186.6,3186.5,1.50168]
[1765442916905,2.41390455,3186.6,3186.5,2.68948]
[1765442917605,2.41390455,3186.6,3186.5,3.20658]
[1765442918504,2.41390455,3186.6,3186.5,2.68948]
[1765442919107,2.41390455,3186.6,3186.5,1.50168]
[1765442919309,2.4053,3186.4,3186.3,4.4144]
[1765442919607,2.4053,3186.4,3186.3,5.6022]
[1765442920403,1.2249,3186.4,3186.3,5.6022]
[1765442920709,0.00860455,3186.6,3186.5,2.8761]
[1765442926511,1.23350455,3186.6,3186.5,2.8761]
[1765442926712,0.00860455,3186.6,3186.5,2.8761]
[1765442926911,1.23350455,3186.6,3186.5,2.8761]
[1765442930106,0.00860455,3186.6,3186.5,2.8761]
[1765442933614,3.21640455,3186.6,3186.5,2.8761]
[1765442933810,2.4053,3185.6,3185.5,3.20905119]
[1765442934116,2.4053,3185.3,3185.2,2.3975387]
[1765442934418,6.7392479,3185.3,3185.2,2.3975387]
[1765442935009,6.7392479,3185.3,3185.2,2.40103136]
[1765442935210,5.5588479,3185.3,3185.2,2.40103136]
[1765442936713,1.2249,3185.3,3185.2,2.40103136]
[1765442936913,1.1261479,3185.5,3185.4,2.3944]
[1765442937220,2.3510479,3185.5,3185.4,2.3944]
[1765442937523,3.5314479,3185.5,3185.4,2.3944]
[1765442939423,2.11,3185.3,3185.2,2.11213136]
[1765442939712,5.3178,3185.3,3185.2,1.10373136]
[1765442939913,2.11,3184.9,3184.8,3.2078]
[1765442940122,3.2361479,3184.9,3184.8,1.0971]
[1765442940513,1.093,3184.6,3184.5,2.7325]
[1765442941018,3.2361479,3184.6,3184.5,2.73547892]
[1765442941318,1.093,3184.6,3184.5,2.73547892]
[1765442941515,2.11,3184.6,3184.5,1.10007892]
[1765442941718,2.11,3184.6,3184.5,2.10847892]
[1765442941915,2.11,3184.6,3184.5,2.73547892]
[1765442942113,1.093,3184.6,3184.5,2.73547892]
[1765442942510,2.11,3184.6,3184.5,2.73547892]
[1765442942914,1.093,3184.6,3184.5,2.73547892]
[1765442943120,2.2191479,3184.7,3184.6,2.1055]
[1765442943317,3.2361479,3184.7,3184.6,2.1055]
[1765442943821,1.093,3184.7,3184.6,2.1055]
[1765442944216,2.11,3184.7,3184.6,2.1055]
[1765442946023,2.11,3184.7,3184.6,1.0971]
[1765442946725,3.26678007,3184.7,3184.6,2.1055]
[1765442947425,1.15678007,3184.7,3184.5,0.62997892]
[1765442947613,2.11,3184.6,3184.5,2.73547892]
[1765442948023,2.11,3184.6,3184.5,0.00297892]
[1765442948522,2.11,3184.1,3184.0,2.1055]
[1765442949022,1.093,3184.1,3184.0,2.7325]
[1765442949226,5.3178,3184.4,3184.3,2.1055]
[1765442949417,5.32081517,3184.4,3184.3,2.10850151]
[1765442950018,3.21081517,3184.4,3184.3,2.10850151]
[1765442951924,3.21081517,3184.4,3184.3,2.26549151]
[1765442952124,3.2078,3184.8,3184.7,2.1355]
[1765442953120,3.21059578,3184.8,3184.7,2.1355]
[1765442958531,3.21059578,3184.8,3184.7,2.29247]
[1765442962437,4.25079578,3184.8,3184.7,2.29247]
[1765442962736,5.23569578,3184.8,3184.7,1.25407]
[1765442962937,5.23569578,3184.8,3184.7,2.29247]
[1765442963340,3.21059578,3184.8,3184.7,2.29247]
[1765442965747,0.00470802,3184.9,3184.8,2.18966]
[1765442966045,8.02e-06,3184.9,3184.8,2.18966]
[1765442966742,0.00304863,3184.9,3184.8,2.18966]
[1765442968743,0.00304863,3184.9,3184.8,3.34561593]
[1765442969849,6.33085593,3185.7,3185.6,2.11152]
[1765442970050,5.1749,3185.7,3185.6,2.11152]
[1765442970249,6.33085593,3185.7,3185.6,2.11152]
[1765442970748,6.33478865,3185.7,3185.6,2.11152]
[1765442971340,6.33478865,3185.7,3185.6,1.14582]
[1765442971543,6.33478865,3185.7,3185.6,2.11152]
[1765442971750,6.33478865,3185.7,3185.6,1.14582]
[1765442971947,6.33478865,3185.7,3185.6,0.15692]
[1765442974055,6.33478865,3185.7,3185.2,2.16232]
[1765442974249,3.12305593,3185.4,3185.3,0.15694]
[1765442980864,2.12365593,3185.4,3185.3,2.11154]
[1765442981065,3.12305593,3185.4,3185.3,2.11154]
[1765442981467,3.12305593,3185.4,3185.3,1.14584]
[1765442982363,3.12305593,3185.4,3185.3,2.11154]
[1765442985369,3.12305593,3185.4,3185.3,1.14584]
[1765442985859,3.12305593,3185.4,3185.3,0.15694]
[1765442988768,1.9671,3185.4,3185.3,2.11154]
[1765442989066,1.9671,3185.4,3185.3,1.14584]
[1765442989567,1.9671,3185.4,3185.3,0.15694]
[1765442989967,1.9671,3185.4,3185.3,1.14584]
[1765442990474,1.9671,3185.4,3185.3,0.15694]
[1765442990772,1.9671,3185.4,3185.3,1.14584]
[1765442991774,1.9671,3185.4,3185.3,2.11154]
[1765442994560,3.12305593,3185.4,3185.3,2.11154]
[1765442996466,1.9671,3185.4,3185.3,2.11154]
[1765443000378,0.941,3185.5,3185.4,2.02223]
[1765443000575,5.03783272,3185.7,3185.6,2.02222]
[1765443001279,4.15273272,3185.7,3185.6,2.02222]
[1765443002578,3.21173272,3185.7,3185.6,2.02222]
[1765443002774,4.15273272,3185.7,3185.6,2.02222]
[1765443003479,0.94493272,3185.7,3185.6,2.02222]
[1765443004477,0.00393272,3185.7,3185.6,2.02222]
[1765443004978,9.066e-05,3185.7,3185.6,2.02222]
[1765443005372,4.1488,3186.2,3186.1,2.0222]
[1765443006181,5.0339,3186.2,3186.1,2.0222]
[1765443006383,5.03623125,3186.2,3186.1,2.0222]
[1765443006879,5.03623125,3186.2,3186.1,0.1569]
[1765443009183,3.21013125,3186.2,3186.1,2.0222]
[1765443010274,0.00233125,3186.2,3186.1,2.0222]
[1765443010674,1.82843125,3186.2,3186.1,1.0951]
[1765443011075,1.82843125,3186.2,3186.1,2.0222]
[1765443011477,0.00233125,3186.2,3186.1,2.0222]
[1765443013482,1.82843125,3186.2,3186.1,2.0222]
[1765443013887,0.94333125,3186.2,3186.1,2.0222]
[1765443016189,0.00233125,3186.2,3186.1,2.0222]
[1765443018794,1.68743125,3186.2,3186.1,2.0222]
[1765443019592,0.84813125,3186.2,3186.1,2.0222]
[1765443022088,1.68743125,3186.2,3186.1,2.0222]
[1765443022793,0.84813125,3186.2,3186.1,2.0222]
[1765443023688,0.00233125,3186.2,3186.1,2.0222]
[1765443023892,0.84813125,3186.2,3186.1,2.0222]
[1765443024484,0.00233125,3186.2,3186.1,2.0222]
[1765443029695,0.00233125,3186.2,3186.1,5.23]
[1765443030592,1.72223125,3186.2,3186.1,5.23]
[1765443031402,0.84813125,3186.2,3186.1,5.23]
[1765443031605,1.72223125,3186.2,3186.1,5.23]
[1765443033000,0.84813125,3186.2,3186.1,5.23]
[1765443033200,1.72223125,3186.2,3186.1,5.23]
[1765443033998,1.72223125,3186.2,3186.1,4.3029]
[1765443034699,1.72223125,3186.2,3186.1,1.0951]
[1765443035007,1.72223125,3186.2,3186.1,1.9074]
[1765443035306,0.00470802,3186.5,3186.4,1.77228]
[1765443035494,0.00470802,3186.5,3186.4,6.10659376]
[1765443036195,3.2078,3186.9,3186.8,1.77226]
[1765443036391,0.5235,3187.5,3186.8,4.33431376]
[1765443036592,0.52624112,3187.5,3187.4,4.49114376]
[1765443036903,0.52624112,3187.5,3187.4,3.36463]
[1765443037098,1.39454112,3187.5,3187.4,3.36463]
[1765443037496,0.52624112,3187.5,3187.4,3.98183]
[1765443037895,1.39454112,3187.5,3187.4,3.98183]
[1765443038108,0.52624112,3187.5,3187.4,3.98183]
[1765443039701,1.39454112,3187.5,3187.4,3.98183]
[1765443039902,2.26864112,3187.5,3187.4,3.98183]
[1765443040205,0.52624112,3187.5,3187.4,3.98183]
[1765443040803,0.00274112,3187.5,3187.4,8.42162771]
[1765443045603,0.00470802,3187.8,3187.7,0.63282]
[1765443045803,0.00470802,3187.8,3187.7,14.15433376]
[1765443046004,0.00470802,3187.8,3187.7,17.46114584]
[1765443046604,0.0085909,3187.8,3187.7,17.46114584]
[1765443054213,0.5235,3189.0,3188.4,0.46648]
[1765443054408,0.5235,3189.0,3188.4,3.67428]
[1765443055414,0.52708536,3188.5,3188.4,3.67428]
[1765443055915,1.39538536,3188.5,3188.4,3.67428]
[1765443056214,2.26948536,3188.5,3188.4,3.52428]
[1765443056414,2.26948536,3188.5,3188.4,3.36458]
[1765443056617,0.00470802,3188.8,3188.4,4.0109]
[1765443056814,1.74710802,3188.8,3188.7,0.15677]
[1765443057609,1.74989925,3188.8,3188.7,0.15677]
[1765443060610,0.87579925,3188.8,3188.7,2.03007]